bitfinex/quotes_SOLUSD_20241031
["timestamp","ask_amount","ask_price","bid_price","bid_amount"]
[1730410361133,20.0,169.79,169.77,0.1]
[1730410361847,20.0,169.79,169.75,0.1]
[1730410362225,20.0,169.79,169.76,0.1]
[1730410362637,20.0,169.79,169.75,0.1]
[1730410362831,20.0,169.79,169.76,0.1]
[1730410365043,20.0,169.79,169.75,0.1]
[1730410365246,20.0,169.79,169.76,0.1]
[1730410365417,20.0,169.79,169.75,0.1]
[1730410365616,20.0,169.79,169.76,0.1]
[1730410365839,20.0,169.79,169.77,0.1]
[1730410367541,20.0,169.79,169.75,0.1]
[1730410367742,20.0,169.79,169.77,0.1]
[1730410368548,20.0,169.79,169.75,0.1]
[1730410368731,20.0,169.79,169.77,0.1]
[1730410370525,20.0,169.79,169.76,0.1]
[1730410370728,20.0,169.79,169.75,0.1]
[1730410371039,25.59360663,169.79,169.74,0.1]
[1730410371237,1.02446547,169.78,169.74,0.1]
[1730410371931,1.02446547,169.78,169.75,0.1]
[1730410372744,1.02446547,169.78,169.74,0.1]
[1730410374431,20.0,169.77,169.74,0.1]
[1730410374618,20.0,169.77,169.71,0.1]
[1730410374826,6.14497277,169.76,169.71,0.1]
[1730410375018,20.0,169.75,169.69,0.1]
[1730410375539,20.0,169.75,169.7,0.1]
[1730410377533,20.0,169.75,169.68,45.0974]
[1730410377845,20.0,169.75,169.7,0.1]
[1730410379447,26.74587973,169.75,169.7,0.1]
[1730410379950,26.74587973,169.75,169.68,45.0974]
[1730410380249,26.74587973,169.75,169.7,0.1]
[1730410381945,33.61724237,169.75,169.7,0.1]
[1730410382145,28.74020272,169.75,169.66,0.1]
[1730410382319,28.74020272,169.75,169.64,43.4338]
[1730410382320,4.87703965,169.74,169.69,0.1]
[1730410389640,4.87703965,169.74,169.67,0.1]
[1730410389950,27.17271357,169.73,169.67,0.1]
[1730410403669,32.04975322,169.73,169.67,0.1]
[1730410404058,20.0,169.71,169.67,0.1]
[1730410404650,20.0,169.69,169.67,0.1]
[1730410408466,20.0,169.69,169.65,0.1]
[1730410408651,20.0,169.69,169.67,0.1]
[1730410409845,21.81047959,169.69,169.67,0.1]
[1730410410051,22.8352725,169.69,169.67,0.1]
[1730410415484,22.8352725,169.69,169.64,43.5338]
[1730410415781,22.8352725,169.69,169.66,0.1]
[1730410416659,22.8352725,169.69,169.64,43.4338]
[1730410417749,22.8352725,169.69,169.64,43.5338]
[1730410419283,2.8352725,169.69,169.64,43.4338]
[1730410419465,20.0,169.67,169.64,43.4338]
[1730410420651,20.0,169.67,169.64,43.5338]
[1730410425578,20.0,169.67,169.64,43.4338]
[1730410427067,26.22301417,169.67,169.61,0.1]
[1730410427269,26.22301417,169.67,169.6,0.1]
[1730410427468,31.10005382,169.67,169.6,0.1]
[1730410427687,31.10005382,169.67,169.61,0.1]
[1730410428264,31.10005382,169.67,169.59,43.3611]
[1730410428571,31.10005382,169.67,169.6,0.1]
[1730410429385,31.10005382,169.67,169.59,43.3611]
[1730410429590,31.10005382,169.67,169.6,0.1]
[1730410429770,20.0,169.65,169.59,43.3611]
[1730410430482,1.02534113,169.64,169.59,43.3611]
[1730410430868,1.02534113,169.64,169.6,0.1]
[1730410431070,1.02534113,169.64,169.59,43.3611]
[1730410431372,1.02534113,169.64,169.6,0.1]
[1730410431574,1.02534113,169.64,169.59,43.2611]
[1730410432867,1.02534113,169.64,169.59,43.3611]
[1730410433387,1.02534113,169.64,169.59,43.2611]
[1730410433984,1.02534113,169.64,169.59,43.3611]
[1730410434190,1.02534113,169.64,169.59,43.2611]
[1730410434872,1.02534113,169.64,169.59,43.3611]
[1730410435187,1.02534113,169.64,169.59,43.2611]
[1730410435789,1.02534113,169.64,169.59,43.3611]
[1730410436369,1.02534113,169.64,169.59,43.2611]
[1730410437188,1.02534113,169.64,169.59,43.3611]
[1730410437395,40.07766214,169.65,169.6,0.1]
[1730410439487,40.07766214,169.65,169.59,43.3611]
[1730410440064,20.0,169.63,169.59,43.3611]
[1730410440488,20.0,169.63,169.59,43.2611]
[1730410440794,20.0,169.63,169.58,0.1]
[1730410442295,20.0,169.63,169.57,0.1]
[1730410442479,20.0,169.63,169.58,0.1]
[1730410442880,6.87136264,169.62,169.56,0.1]
[1730410443087,20.0,169.61,169.55,44.9178]
[1730410443277,20.0,169.59,169.55,44.9178]
[1730410443593,20.0,169.59,169.55,44.8178]
[1730410443794,39.11510325,169.59,169.55,44.8178]
[1730410445877,39.11510325,169.59,169.54,0.1]
[1730410446287,20.0,169.59,169.56,0.1]
[1730410446478,24.87703965,169.62,169.59,0.1]
[1730410446901,4.87703965,169.62,169.59,0.1]
[1730410447982,24.87703965,169.62,169.58,0.1]
[1730410448283,24.87703965,169.62,169.6,0.1]
[1730410450199,24.87703965,169.62,169.58,0.1]
[1730410450405,24.87703965,169.62,169.6,0.1]
[1730410460606,25.90246258,169.62,169.6,0.1]
[1730410461114,24.87703965,169.62,169.6,0.1]
[1730410461486,24.87703965,169.62,169.58,0.1]
[1730410461815,24.87703965,169.62,169.6,0.1]
[1730410464489,4.87703965,169.62,169.61,0.1]
[1730410464685,6.14829988,169.64,169.61,44.0295]
[1730410464905,6.14829988,169.64,169.63,0.1]
[1730410466117,26.14829988,169.64,169.63,0.1]
[1730410466695,26.14829988,169.64,169.62,0.1]
[1730410466895,20.0,169.63,169.62,0.1]
[1730410481324,20.0,169.63,169.6,0.1]
[1730410481628,20.0,169.61,169.54,0.1]
[1730410481924,20.0,169.59,169.54,0.1]
[1730410482107,5.40227654,169.58,169.55,0.1]
[1730410482308,20.0,169.57,169.55,0.1]
[1730410482508,26.48720499,169.57,169.55,0.1]
[1730410483518,5.40227654,169.56,169.54,0.1]
[1730410483828,20.0,169.55,169.54,0.1]
[1730410485833,21.025667,169.55,169.54,0.1]
[1730410486127,20.0,169.55,169.54,0.1]
[1730410492233,20.0,169.55,169.53,0.1]
[1730410492824,20.0,169.55,169.54,0.1]
[1730410493138,26.48720499,169.55,169.52,0.1]
[1730410493341,26.48720499,169.55,169.53,0.1]
[1730410498108,26.48720499,169.55,169.52,0.1]
[1730410498332,26.48720499,169.55,169.53,0.1]
[1730410498526,26.48720499,169.55,169.54,0.1]
[1730410499927,26.48720499,169.55,169.5,0.1]
[1730410500325,26.48720499,169.55,169.52,0.1]
[1730410500636,20.0,169.53,169.52,0.1]
[1730410502639,20.0,169.53,169.5,0.2]
[1730410503434,20.0,169.53,169.52,0.1]
[1730410505016,20.0,169.53,169.52,0.2]
[1730410509350,5.40227654,169.54,169.53,0.1]
[1730410510031,5.40227654,169.54,169.53,0.2]
[1730410510639,20.0,169.54,169.53,0.2]
[1730410520343,7.07999442,169.58,169.57,0.1]
[1730410520529,7.07999442,169.58,169.57,0.2]
[1730410521746,5.59360663,169.6,169.57,0.2]
[1730410521926,8.83589607,169.63,169.59,0.1]
[1730410522127,12.62577468,169.63,169.59,0.1]
[1730410522648,12.62577468,169.63,169.62,0.1]
[1730410523153,32.62577468,169.63,169.62,0.1]
[1730410530445,32.62577468,169.63,169.61,0.1]
[1730410530651,20.0,169.62,169.61,0.1]
[1730410530830,25.59360663,169.62,169.61,0.1]
[1730410531031,25.59360663,169.62,169.6,0.2]
[1730410532936,25.59360663,169.62,169.61,0.2]
[1730410533256,25.59360663,169.62,169.61,0.1]
[1730410534349,25.59360663,169.62,169.61,0.2]
[1730410535169,25.59360663,169.62,169.61,0.1]
[1730410536661,25.59360663,169.62,169.61,0.2]
[1730410537658,25.59360663,169.62,169.61,0.1]
[1730410538556,25.59360663,169.62,169.61,0.2]
[1730410538860,25.59360663,169.62,169.61,0.1]
[1730410539061,25.59360663,169.62,169.61,0.2]
[1730410556351,13.18245945,169.65,169.61,0.2]
[1730410556352,6.1502914,169.65,169.64,0.2]
[1730410556555,1.02511628,169.67,169.66,0.2]
[1730410557050,1.849895,169.73,169.66,0.2]
[1730410557252,1.02474327,169.71,169.66,0.2]
[1730410557677,20.0,169.71,169.69,0.1]
[1730410560877,20.0,169.71,169.67,0.1]
[1730410561080,20.0,169.71,169.69,0.1]
[1730410561379,20.0,169.72,169.69,0.1]
[1730410563575,20.0,169.72,169.66,0.2]
[1730410564076,20.0,169.72,169.69,0.1]
[1730410566471,20.0,169.72,169.69,0.2]
[1730410567484,2.874666,169.73,169.69,0.1]
[1730410567690,6.15226628,169.71,169.69,0.1]
[1730410568067,20.0,169.7,169.69,0.1]
[1730410570692,20.0,169.7,169.69,0.2]
[1730410576389,20.0,169.7,169.69,0.1]
[1730410576593,20.0,169.7,169.69,0.2]
[1730410576787,26.15364577,169.7,169.69,0.2]
[1730410580576,27.17837542,169.7,169.69,0.2]
[1730410581685,27.17837542,169.7,169.69,0.1]
[1730410581896,27.17837542,169.7,169.69,0.2]
[1730410590885,21.02472965,169.7,169.69,0.2]
[1730410592905,20.0,169.7,169.69,0.2]
[1730410593103,30.70339984,169.72,169.67,0.1]
[1730410593409,20.0,169.71,169.67,0.1]
[1730410593597,20.0,169.71,169.69,0.1]
[1730410594494,20.0,169.71,169.68,0.1]
[1730410594678,21.02490148,169.71,169.68,0.1]
[1730410595511,21.02490148,169.71,169.67,0.2]
[1730410596103,21.02490148,169.71,169.68,0.1]
[1730410596500,21.02490148,169.71,169.67,0.2]
[1730410596893,21.02490148,169.71,169.66,0.2]
[1730410597410,20.0,169.69,169.66,0.1]
[1730410598192,20.0,169.69,169.67,0.1]
[1730410599087,20.0,169.69,169.66,0.1]
[1730410601309,6.15113313,169.68,169.66,0.1]
[1730410601598,20.0,169.67,169.66,0.1]
[1730410602702,20.0,169.68,169.66,0.1]
[1730410602895,20.0,169.68,169.65,0.2]
[1730410603208,20.0,169.68,169.66,0.1]
[1730410604099,20.0,169.68,169.65,0.2]
[1730410604302,20.0,169.68,169.66,0.1]
[1730410604509,20.0,169.68,169.65,0.2]
[1730410604710,20.0,169.68,169.66,0.1]
[1730410608015,20.0,169.68,169.65,0.2]
[1730410608394,20.0,169.68,169.64,0.1]
[1730410608593,20.0,169.66,169.62,0.1]
[1730410608988,20.0,169.66,169.61,0.1]
[1730410609187,20.0,169.66,169.62,0.1]
[1730410609424,20.0,169.66,169.61,0.1]
[1730410609714,20.0,169.66,169.62,0.1]
[1730410610395,20.0,169.66,169.6,0.2]
[1730410610926,20.0,169.66,169.62,0.1]
[1730410613822,20.0,169.66,169.62,0.2]
[1730410615016,21.0214947,169.66,169.62,0.2]
[1730410616818,21.0214947,169.66,169.62,0.1]
[1730410617016,21.0214947,169.66,169.6,0.2]
[1730410617220,21.0214947,169.66,169.62,0.1]
[1730410617408,21.0214947,169.66,169.62,0.2]
[1730410621024,21.0214947,169.66,169.63,0.1]
[1730410628327,21.0214947,169.66,169.64,0.1]
[1730410628626,1.0214947,169.66,169.64,0.1]
[1730410628846,1.0214947,169.66,169.65,0.1]
[1730410629128,6.127348,169.7,169.68,0.1]
[1730410629336,7.14847132,169.7,169.68,0.2]
[1730410629706,6.127348,169.7,169.68,0.2]
[1730410629919,6.1261633,169.71,169.68,0.2]
[1730410630107,13.0526793,169.71,169.68,0.2]
[1730410630323,6.1261633,169.71,169.68,0.1]
[1730410630523,6.1261633,169.71,169.68,0.2]
[1730410630706,6.1261633,169.71,169.69,0.1]
[1730410630906,20.0,169.7,169.69,0.1]
[1730410635638,20.0,169.71,169.69,0.1]
[1730410636932,20.0,169.71,169.68,0.2]
[1730410643124,26.12667743,169.71,169.68,0.2]
[1730410649331,20.0,169.71,169.68,0.2]
[1730410650938,20.0,169.71,169.69,0.1]
[1730410651142,20.0,169.71,169.68,0.2]
[1730410651434,20.0,169.71,169.69,0.1]
[1730410652340,20.0,169.71,169.68,0.1]
[1730410652537,20.0,169.71,169.69,0.2]
[1730410653337,20.0,169.71,169.69,0.1]
[1730410655721,20.0,169.71,169.67,0.1]
[1730410655722,23.776884,169.7,169.67,0.1]
[1730410656133,20.0,169.69,169.66,0.2]
[1730410656844,20.0,169.69,169.67,0.1]
[1730410657144,20.0,169.69,169.66,0.2]
[1730410658441,20.0,169.69,169.67,0.1]
[1730410661334,20.0,169.69,169.68,0.1]
[1730410662739,20.0,169.69,169.68,0.2]
[1730410663625,20.0,169.69,169.68,0.1]
[1730410664248,20.0,169.69,169.68,0.2]
[1730410669149,20.0,169.69,169.68,0.1]
[1730410669327,20.0,169.69,169.68,0.2]
[1730410671255,20.0,169.69,169.68,0.1]
[1730410671433,20.0,169.69,169.68,0.2]
[1730410672255,20.0,169.69,169.68,0.1]
[1730410672428,20.0,169.69,169.68,0.2]
[1730410673250,20.0,169.69,169.68,0.1]
[1730410673628,26.13453218,169.69,169.68,0.2]
[1730410675033,27.1570576,169.69,169.68,0.2]
[1730410678051,21.02252542,169.69,169.68,0.1]
[1730410678255,27.15595469,169.69,169.68,0.2]
[1730410683967,21.02252542,169.69,169.68,0.2]
[1730410689751,21.02252542,169.69,169.68,0.1]
[1730410690062,21.02252542,169.69,169.68,0.2]
[1730410692479,21.02252542,169.69,169.68,0.1]
[1730410695352,21.02252542,169.69,169.68,0.2]
[1730410698877,20.0,169.69,169.68,0.1]
[1730410699376,1.0199309,169.69,169.68,0.1]
[1730410700774,1.0199309,169.69,169.67,0.1]
[1730410700967,1.0199309,169.69,169.68,0.1]
[1730410701677,1.0199309,169.69,169.67,0.1]
[1730410701877,1.0199309,169.69,169.68,0.1]
[1730410707490,1.0199309,169.69,169.67,0.2]
[1730410707782,1.0199309,169.69,169.68,0.1]
[1730410711768,1.0199309,169.69,169.67,0.1]
[1730410711769,1.0199309,169.69,169.67,0.2]
[1730410711965,1.0199309,169.69,169.66,0.2]
[1730410712170,1.0199309,169.69,169.66,0.1]
[1730410712377,23.776884,169.68,169.65,0.1]
[1730410712582,20.0,169.67,169.63,0.1]
[1730410712885,23.776884,169.68,169.61,0.1]
[1730410712886,20.0,169.65,169.61,0.1]
[1730410713077,20.0,169.65,169.6,0.1]
[1730410713078,20.0,169.63,169.6,0.1]
[1730410713273,20.0,169.63,169.59,0.2]
[1730410713475,20.0,169.63,169.59,0.1]
[1730410713675,20.0,169.63,169.6,0.1]
[1730410715381,20.0,169.63,169.61,0.1]
[1730410718272,20.0,169.63,169.6,0.1]
[1730410718483,20.0,169.63,169.61,0.1]
[1730410719471,21.02233677,169.63,169.61,0.1]
[1730410720775,21.02233677,169.63,169.6,0.1]
[1730410720982,21.02233677,169.63,169.61,0.1]
[1730410721792,22.82861274,169.63,169.61,0.1]
[1730410722678,28.96039338,169.63,169.61,0.1]
[1730410731091,28.96039338,169.63,169.62,0.1]
[1730410742505,28.96039338,169.63,169.62,0.2]
[1730410744112,21.80627597,169.63,169.62,0.2]
[1730410745290,20.0,169.63,169.62,0.2]
[1730410784926,20.0,169.63,169.62,0.1]
[1730410788732,20.0,169.63,169.61,0.1]
[1730410788950,20.0,169.65,169.62,0.1]
[1730410789847,20.0,169.63,169.6,0.1]
[1730410791021,20.0,169.61,169.6,0.1]
[1730410792943,43.776884,169.61,169.59,0.1]
[1730410793150,20.0,169.61,169.56,0.1]
[1730410793446,20.0,169.59,169.56,0.1]
[1730410794320,20.0,169.59,169.55,0.1]
[1730410796249,20.0,169.59,169.54,0.1]
[1730410797026,20.0,169.59,169.55,0.1]
[1730410797234,20.0,169.59,169.54,0.1]
[1730410797435,20.0,169.59,169.55,0.1]
[1730410798443,20.0,169.59,169.54,0.1]
[1730410800239,20.0,169.59,169.53,34.6591]
[1730410800240,21.8419938,169.61,169.55,0.1]
[1730410800431,20.0,169.61,169.59,0.1]
[1730410800621,7.15376612,169.62,169.59,0.1]
[1730410800823,8.98200903,169.62,169.6,0.1]
[1730410801130,7.15376612,169.62,169.61,0.1]
[1730410801550,6.13144853,169.62,169.61,0.1]
[1730410801735,7.9480235,169.64,169.61,0.1]
[1730410802127,6.12951575,169.62,169.61,0.1]
[1730410803026,26.12951575,169.62,169.61,0.1]
[1730410820073,26.12951575,169.62,169.6,0.1]
[1730410820550,20.0,169.61,169.6,0.1]
[1730410821953,21.02228855,169.61,169.6,0.1]
[1730410832773,20.0,169.61,169.6,0.1]
[1730410851578,21.02312592,169.63,169.59,0.1]
[1730410852077,21.02312592,169.63,169.6,0.1]
[1730410852278,27.16612344,169.63,169.58,0.1]
[1730410854003,27.16612344,169.63,169.59,0.1]
[1730410855368,27.16612344,169.63,169.6,0.1]
[1730410856890,27.16612344,169.63,169.59,0.1]
[1730410857297,27.16612344,169.63,169.6,0.1]
[1730410859397,27.16612344,169.63,169.61,0.1]
[1730410860194,27.16612344,169.63,169.6,0.1]
[1730410860403,27.16612344,169.63,169.59,0.1]
[1730410861068,27.16612344,169.63,169.6,0.1]
[1730410861272,27.16612344,169.63,169.59,0.1]
[1730410861472,27.16612344,169.63,169.6,0.1]
[1730410861872,27.16612344,169.63,169.61,0.1]
[1730410863797,27.16612344,169.63,169.62,0.1]
[1730410869597,7.16612344,169.63,169.62,0.1]
[1730410870293,6.14299752,169.63,169.62,0.1]
[1730410870889,26.14299752,169.63,169.62,0.1]
[1730410885815,20.0,169.63,169.62,0.1]
[1730410913328,20.0,169.66,169.62,0.1]
[1730410913734,20.0,169.66,169.65,0.1]
[1730410918629,20.0,169.66,169.65,9.5887]
[1730410919144,29.85096994,169.72,169.71,0.1]
[1730410919532,28.8298384,169.72,169.71,0.1]
[1730410919851,29.85065797,169.72,169.71,0.1]
[1730410920145,28.8298384,169.72,169.71,0.1]
[1730410920535,48.8298384,169.72,169.71,0.1]
[1730410925246,20.0,169.72,169.71,0.1]
[1730410928423,45.99932647,169.72,169.71,0.1]
[1730410929148,20.0,169.72,169.71,0.1]
[1730410929834,26.12539628,169.72,169.71,0.1]
[1730410931229,52.57552517,169.72,169.71,0.1]
[1730410931429,20.0,169.71,169.7,1000.1]
[1730410943266,20.0,169.71,169.7,1000.0]
[1730410943439,43.776884,169.71,169.7,933.0047136]
[1730410943644,43.776884,169.71,169.7,923.1727136]
[1730410945664,43.876884,169.71,169.7,923.1727136]
[1730410945871,43.876884,169.71,169.7,908.9327136]
[1730410946359,49.04137701,169.71,169.7,908.9327136]
[1730410949047,75.10769665,169.71,169.7,908.9327136]
[1730410952669,69.94320364,169.71,169.7,908.9327136]
[1730410955551,69.94320364,169.71,169.7,887.5727136]
[1730410955754,75.10769665,169.71,169.7,887.5727136]
[1730410956151,75.10769665,169.71,169.7,873.3327136]
[1730410956351,75.10769665,169.71,169.7,859.0927136]
[1730410957550,75.10769665,169.71,169.7,856.0927136]
[1730410958671,69.94320364,169.71,169.7,856.0927136]
[1730410958853,75.10769665,169.71,169.7,856.0927136]
[1730410959256,145.10769665,169.71,169.7,832.3227136]
[1730410959549,145.10769665,169.71,169.7,806.3126288]
[1730410961772,175.10769665,169.71,169.7,801.3126288]
[1730410963478,182.03382289,169.71,169.7,801.3126288]
[1730410965081,205.63595089,169.71,169.7,801.3126288]
[1730410966171,205.63595089,169.71,169.7,795.1861476]
[1730410966364,241.09595089,169.71,169.7,795.1861476]
[1730410966574,205.63595089,169.71,169.7,795.1861476]
[1730410967263,211.76378798,169.71,169.7,795.1861476]
[1730410967660,206.59929497,169.71,169.7,795.1861476]
[1730410968067,211.96348243,169.71,169.7,795.1861476]
[1730410972560,181.96348243,169.71,169.7,795.1861476]
[1730410974679,181.96348243,169.71,169.7,793.18827488]
[1730410975570,182.27348243,169.71,169.7,793.18827488]
[1730410976285,182.27348243,169.71,169.7,782.38066008]
[1730410976456,182.27348243,169.71,169.7,777.39281358]
[1730410978468,182.27348243,169.71,169.7,771.23837241]
[1730410984489,182.27348243,169.71,169.7,767.96457241]
[1730410984692,182.27348243,169.71,169.7,632.52385968]
[1730410984993,182.27348243,169.71,169.7,581.56981838]
[1730410986390,182.27348243,169.71,169.7,579.87818532]
[1730410986574,217.73348243,169.71,169.7,579.87818532]
[1730410986982,217.73348243,169.71,169.7,577.43416742]
[1730410989377,228.34209935,169.71,169.7,577.43416742]
[1730410989892,217.73348243,169.71,169.7,559.38934968]
[1730410991302,182.27348243,169.71,169.7,559.38934968]
[1730410994995,192.8879344,169.71,169.7,559.38934968]
[1730410996492,228.3479344,169.71,169.7,559.38934968]
[1730411000092,228.3479344,169.71,169.7,538.12324188]
[1730411000998,217.73348243,169.71,169.7,538.12324188]
[1730411009493,231.01869358,169.71,169.7,538.12324188]
[1730411010204,217.73348243,169.71,169.7,475.82888822]
[1730411014002,217.73348243,169.71,169.7,466.27905978]
[1730411014180,217.73348243,169.71,169.7,460.12629863]
[1730411014907,217.73348243,169.71,169.7,456.59554235]
[1730411015100,217.73348243,169.71,169.7,441.48424235]
[1730411020194,217.73348243,169.71,169.7,436.63724235]
[1730411020403,217.73348243,169.71,169.7,382.43809462]
[1730411021413,217.73348243,169.71,169.7,369.97809462]
[1730411021715,217.73348243,169.71,169.7,339.26012548]
[1730411022106,217.73348243,169.71,169.7,326.86012548]
[1730411022817,217.73348243,169.71,169.7,316.71212548]
[1730411023190,217.73348243,169.71,169.7,310.71179138]
[1730411024215,217.73348243,169.71,169.7,282.66282262]
[1730411024409,217.73348243,169.71,169.7,270.20070002]
[1730411026816,217.73348243,169.71,169.7,259.20341432]
[1730411027016,235.46348243,169.71,169.7,132.20117939]
[1730411027209,266.74983492,169.71,169.7,16.32120064]
[1730411027403,0.1,169.59,169.58,24.8283]
[1730411027800,0.1,169.59,169.58,21.301819]
[1730411028015,11.47833261,169.59,169.58,21.301819]
[1730411028519,12.49890498,169.59,169.58,21.301819]
[1730411028819,42.13093279,169.59,169.58,21.301819]
[1730411029215,62.13093279,169.59,169.58,21.301819]
[1730411030203,69.05705903,169.59,169.58,21.301819]
[1730411030610,68.95705903,169.59,169.57,7.57161614]
[1730411030821,60.56564712,169.58,169.57,4.09870114]
[1730411032523,60.46564712,169.58,169.57,4.09870114]
[1730411032900,60.56564712,169.58,169.57,4.09870114]
[1730411033106,60.46564712,169.58,169.57,4.09870114]
[1730411033332,60.56564712,169.58,169.57,4.09870114]
[1730411033706,60.46564712,169.58,169.57,31.16970114]
[1730411034212,60.56564712,169.58,169.57,30.14947187]
[1730411035331,61.58641876,169.58,169.57,30.14947187]
[1730411036019,61.48641876,169.58,169.57,30.14947187]
[1730411036214,61.58641876,169.58,169.57,30.14947187]
[1730411036816,61.48641876,169.58,169.57,30.14947187]
[1730411038909,59.47983224,169.58,169.57,29.94537316]
[1730411039108,59.47983224,169.58,169.57,29.76833514]
[1730411039309,58.4590606,169.58,169.57,29.76833514]
[1730411040334,59.47964615,169.58,169.57,29.76833514]
[1730411043332,58.4590606,169.58,169.57,28.92537317]
[1730411044412,59.47963862,169.58,169.57,28.92537317]
[1730411047237,34.11861234,169.58,169.57,28.92537317]
[1730411048729,27.94670426,169.58,169.57,28.92537317]
[1730411049033,34.11861234,169.58,169.57,28.92537317]
[1730411049237,55.88392671,169.58,169.57,28.92537317]
[1730411052726,54.86334869,169.58,169.57,28.92537317]
[1730411057644,33.09803432,169.58,169.57,28.92537317]
[1730411057947,26.92612624,169.58,169.57,28.92537317]
[1730411058150,33.09803432,169.58,169.57,28.92537317]
[1730411059156,54.60492337,169.58,169.57,28.92537317]
[1730411066751,48.43301529,169.58,169.57,28.92537317]
[1730411067141,54.60492337,169.58,169.57,28.92537317]
[1730411081667,54.60492337,169.58,169.54,0.1]
[1730411081850,5.22356059,169.57,169.54,23.876884]
[1730411082053,20.0,169.56,169.54,23.876884]
[1730411084968,21.0200245,169.57,169.54,23.876884]
[1730411085262,27.19193258,169.57,169.54,23.876884]
[1730411085468,27.19193258,169.57,169.54,23.776884]
[1730411090775,21.0200245,169.57,169.54,23.776884]
[1730411091067,27.19193258,169.57,169.54,23.776884]
[1730411092669,27.19193258,169.57,169.54,23.876884]
[1730411093674,27.19193258,169.57,169.54,23.776884]
[1730411093878,21.0200245,169.57,169.56,0.1]
[1730411094975,27.19193258,169.57,169.56,0.1]
[1730411095675,27.19193258,169.57,169.55,0.1]
[1730411097845,27.19193258,169.57,169.54,23.876884]
[1730411098575,4.42270502,169.56,169.54,23.876884]
[1730411098757,24.42270502,169.56,169.54,23.876884]
[1730411098961,24.42270502,169.56,169.55,250.0]
[1730411106097,20.0,169.56,169.55,250.0]
[1730411106250,26.17190808,169.56,169.55,250.0]
[1730411108861,20.0,169.56,169.55,250.0]
[1730411118376,20.0,169.56,169.55,250.1]
[1730411135786,20.0,169.56,169.55,250.0]
[1730411137889,20.0,169.56,169.55,250.1]
[1730411138602,20.0,169.56,169.55,250.0]
[1730411139067,20.0,169.56,169.55,250.1]
[1730411139269,20.0,169.56,169.55,250.0]
[1730411140474,20.0,169.56,169.55,250.1]
[1730411140678,20.0,169.56,169.55,250.0]
[1730411141693,20.0,169.56,169.55,250.1]
[1730411141896,20.0,169.56,169.55,250.0]
[1730411142198,20.0,169.56,169.55,250.1]
[1730411142598,20.0,169.56,169.55,250.0]
[1730411142770,20.0,169.56,169.55,250.1]
[1730411143988,20.0,169.56,169.55,250.0]
[1730411144178,20.0,169.56,169.55,250.1]
[1730411144380,20.0,169.56,169.55,250.0]
[1730411153406,20.0,169.56,169.55,250.1]
[1730411180136,20.0,169.56,169.55,273.876884]
[1730411181434,6.17190808,169.57,169.55,273.876884]
[1730411181623,1.02577054,169.59,169.55,273.876884]
[1730411181828,1.02577054,169.59,169.58,0.1]
[1730411182014,6.17190808,169.6,169.58,0.1]
[1730411182719,20.0,169.59,169.58,0.1]
[1730411202946,21.82150359,169.59,169.58,0.1]
[1730411203339,20.0,169.59,169.58,0.1]
[1730411205147,20.0,169.59,169.58,67.163884]
[1730411205936,6.17190808,169.63,169.59,23.776884]
[1730411206758,9.3759545,169.69,169.59,23.776884]